bitfinex/quotes_SOLUSD_20260213
["timestamp","ask_amount","ask_price","bid_price","bid_amount"]
[1770945916722,0.70724575,78.347,78.319,12.76829377]
[1770945917800,0.70724575,78.347,78.32,0.9180302]
[1770945918798,4.01445199,78.34,78.321,12.76796772]
[1770945919006,0.71030549,78.341,78.321,12.76796772]
[1770945919910,0.71104573,78.339,78.304,0.9180302]
[1770945921303,0.71250367,78.329,78.303,12.77090277]
[1770945922095,0.71250367,78.329,78.304,0.9180302]
[1770945923713,0.71393359,78.343,78.31,4.01445199]
[1770945923919,0.71393359,78.343,78.311,0.9180302]
[1770945924093,0.71393359,78.342,78.311,0.9180302]
[1770945924412,0.71463639,78.339,78.311,0.9180302]
[1770945924615,0.71463639,78.329,78.301,12.77120468]
[1770945925316,0.71463639,78.319,78.3,0.2]
[1770945925610,4.01445199,78.33,78.302,0.9180302]
[1770945925815,4.01445199,78.33,78.304,0.9180302]
[1770945926115,0.71533089,78.329,78.304,0.9180302]
[1770945927897,0.71670978,78.328,78.304,0.9180302]
[1770945928101,0.71670978,78.328,78.3,0.2]
[1770945928302,0.71670978,78.328,78.301,12.77122897]
[1770945928699,4.61729252,78.326,78.28,1.13624311]
[1770945928901,4.01445199,78.31,78.28,1.13624311]
[1770945929412,4.01445199,78.31,78.28,0.2]
[1770945929615,41.44,78.312,78.28,0.2]
[1770945929616,4.01445199,78.3,78.28,0.2]
[1770945930322,12.77155519,78.299,78.28,0.2]
[1770945930614,4.01445199,78.3,78.28,0.2]
[1770945931021,16.78591166,78.3,78.28,0.2]
[1770945932498,4.01445199,78.3,78.28,0.2]
[1770945935423,4.01445199,78.3,78.28,1.13624311]
[1770945935817,4.01445199,78.3,78.276,12.77517592]
[1770945936041,12.77155519,78.299,78.232,51.12956629]
[1770945936316,12.77155519,78.299,78.249,55.68]
[1770945936620,4.01445199,78.3,78.249,55.68]
[1770945937000,12.77025042,78.307,78.249,55.68]
[1770945937200,4.01445199,78.31,78.27,4.01445199]
[1770945937417,4.01445199,78.31,78.271,44.71643391]
[1770945937921,4.01445199,78.31,78.272,0.93242534]
[1770945939123,4.01445199,78.3,78.272,0.93242534]
[1770945939308,12.76992427,78.309,78.272,0.93242534]
[1770945939309,4.01445199,78.29,78.272,0.93242534]
[1770945939622,4.01445199,78.28,78.252,12.77922609]
[1770945939822,12.76992427,78.309,78.253,0.93242534]
[1770945940004,4.01445199,78.3,78.261,0.93242534]
[1770945940332,4.01445199,78.31,78.271,0.93242534]
[1770945941220,4.01445199,78.32,78.271,0.93242534]
[1770945941527,4.01445199,78.32,78.281,0.93242534]
[1770945941713,12.76754466,78.324,78.281,0.93242534]
[1770945942222,4.61729252,78.338,78.291,0.93242534]
[1770945942413,4.01445199,78.32,78.291,0.93242534]
[1770945942610,4.01445199,78.33,78.291,0.93242534]
[1770945943543,4.01445199,78.33,78.29,4.01445199]
[1770945943544,4.01445199,78.33,78.293,0.93242534]
[1770945944105,31.90286874,78.363,78.311,0.93242534]
[1770945944319,4.01445199,78.36,78.311,0.93242534]
[1770945945200,12.76177592,78.359,78.313,0.93242534]
[1770945945402,12.76177592,78.359,78.312,44.69302278]
[1770945945403,4.01445199,78.36,78.321,0.93242534]
[1770945947317,4.01445199,78.36,78.323,0.93242534]
[1770945948429,4.01445199,78.36,78.325,0.93242534]
[1770945949610,12.76177592,78.359,78.325,0.93242534]
[1770945950214,4.01445199,78.35,78.325,0.93242534]
[1770945950713,4.01445199,78.36,78.327,0.93242534]
[1770945951052,4.01445199,78.34,78.314,0.93242534]
[1770945953219,4.01445199,78.32,78.294,0.93242534]
[1770945953422,4.01445199,78.33,78.294,0.93242534]
[1770945953624,4.01445199,78.36,78.321,0.93242534]
[1770945954018,4.01445199,78.35,78.321,0.93242534]
[1770945954216,4.01445199,78.36,78.321,0.93242534]
[1770945954416,4.01445199,78.35,78.321,0.93242534]
[1770945954932,4.61729252,78.366,78.323,0.93242534]
[1770945954933,4.01445199,78.36,78.323,0.93242534]
[1770945956525,4.01445199,78.36,78.325,0.93242534]
[1770945957426,12.76177592,78.359,78.325,0.93242534]
[1770945958740,12.76177592,78.359,78.327,0.93242534]
[1770945959536,4.01445199,78.36,78.331,0.93242534]
[1770945959837,4.01445199,78.35,78.313,0.93242534]
[1770945960822,4.01445199,78.35,78.315,0.93242534]
[1770945961535,4.61729252,78.368,78.315,0.93242534]
[1770945961536,4.01445199,78.34,78.315,0.93242534]
[1770945961727,4.01445199,78.34,78.309,0.93242534]
[1770945962050,4.01445199,78.33,78.309,0.93242534]
[1770945962749,12.76666368,78.329,78.309,0.93242534]
[1770945963145,12.76666368,78.329,78.299,0.93242534]
[1770945963443,12.76666368,78.329,78.279,0.93242534]
[1770945963444,4.01445199,78.31,78.279,0.93242534]
[1770945963644,4.01445199,78.31,78.28,12.77465508]
[1770945963850,4.01445199,78.31,78.279,0.93242534]
[1770945964226,4.01445199,78.31,78.279,13.70716967]
[1770945964823,12.7683424,78.319,78.282,0.93242534]
[1770945965626,4.01445199,78.32,78.282,0.93242534]
[1770945966024,4.01445199,78.33,78.291,0.93242534]
[1770945967144,4.01445199,78.33,78.293,0.93242534]
[1770945967729,16.78105797,78.33,78.293,0.93242534]
[1770945967930,4.01445199,78.33,78.293,0.93242534]
[1770945969845,4.01445199,78.33,78.295,0.93242534]
[1770945970048,41.42,78.337,78.301,0.93242534]
[1770945970227,12.76527199,78.338,78.301,0.93242534]
[1770945970642,4.01445199,78.33,78.301,0.93242534]
[1770945974538,4.01445199,78.33,78.303,0.93242534]
[1770945977556,4.01445199,78.33,78.305,0.93242534]
[1770945978336,12.76577144,78.335,78.305,0.93242534]
[1770945978643,4.01445199,78.33,78.305,0.93242534]
[1770945978838,4.01595034,78.33,78.305,0.93242534]
[1770945985448,4.01595034,78.33,78.307,0.93242534]
[1770945985846,12.76666368,78.329,78.307,0.93242534]
[1770945986041,41.38,78.339,78.298,0.93242534]
[1770945986042,12.76608653,78.333,78.298,0.93242534]
[1770945986257,41.4,78.343,78.301,0.93242534]
[1770945987366,4.61729252,78.345,78.303,0.93242534]
[1770945987540,4.01595034,78.34,78.303,0.93242534]
[1770945989461,4.01595034,78.35,78.311,0.93242534]
[1770945989950,41.38,78.353,78.311,0.93242534]
[1770945990450,4.01595034,78.36,78.321,0.93242534]
[1770945991659,4.01595034,78.36,78.323,0.93242534]
[1770945993263,4.01595034,78.38,78.331,0.93242534]
[1770945993460,4.01595034,78.38,78.341,0.93242534]
[1770945994841,4.01595034,78.39,78.351,0.93242534]
[1770945996661,4.01595034,78.39,78.353,0.93242534]
[1770945998065,4.01595034,78.39,78.354,12.76259029]
[1770945998370,4.01595034,78.39,78.355,0.93242534]
[1770945998570,12.75363797,78.409,78.371,0.93242534]
[1770945998769,4.01595034,78.4,78.371,0.93242534]
[1770945999153,41.36,78.407,78.371,0.93242534]
[1770945999353,12.75363797,78.409,78.371,0.93242534]
[1770945999657,41.36,78.408,78.371,0.93242534]
[1770946000050,12.75363797,78.409,78.372,12.75965906]
[1770946000250,12.75363797,78.409,78.373,0.93242534]
[1770946001152,0.2,78.41,78.373,0.93242534]
[1770946001656,4.21595034,78.41,78.373,0.93242534]
[1770946002262,12.75363797,78.409,78.375,0.93242534]
[1770946002569,4.01595034,78.4,78.37,12.75996123]
[1770946002786,4.01595034,78.38,78.332,0.93242534]
[1770946003075,4.01595034,78.4,78.332,0.93242534]
[1770946003076,4.01595034,78.36,78.332,0.93242534]
[1770946004975,45.39595034,78.38,78.341,0.93242534]
[1770946005770,4.01595034,78.37,78.341,0.93242534]
[1770946006777,12.7601475,78.369,78.337,13.69767159]
[1770946007171,4.01595034,78.36,78.327,0.93242534]
[1770946007853,4.01595034,78.36,78.329,0.93242534]
[1770946009574,4.01595034,78.36,78.331,0.93242534]
[1770946011455,4.01595034,78.36,78.332,12.76617474]
[1770946011661,4.01595034,78.36,78.333,0.93242534]
[1770946012058,12.76177592,78.359,78.333,0.93242534]
[1770946013273,4.01595034,78.36,78.333,0.93242534]
[1770946013661,4.01595034,78.36,78.335,0.93242534]
[1770946013881,12.76040291,78.368,78.335,0.93242534]
[1770946015484,4.01595034,78.36,78.335,0.93242534]
[1770946016284,4.61729252,78.375,78.318,31.92113599]
[1770946016285,4.01595034,78.35,78.329,0.93242534]
[1770946016987,4.01595034,78.34,78.309,0.93242534]
[1770946017189,4.01595034,78.33,78.303,0.93242534]
[1770946017375,16.7824682,78.33,78.303,0.93242534]
[1770946017881,16.7824682,78.33,78.28,4.01595034]
[1770946017882,4.01595034,78.32,78.286,0.93242534]
[1770946018088,4.01595034,78.31,78.286,0.93242534]
[1770946018270,4.01595034,78.31,78.28,0.93242534]
[1770946019084,4.01595034,78.32,78.281,0.93242534]
[1770946019585,4.01595034,78.32,78.283,0.93242534]
[1770946020278,12.76829377,78.319,78.283,0.93242534]
[1770946020963,4.01595034,78.32,78.283,0.93242534]
[1770946021585,4.01595034,78.32,78.285,0.93242534]
[1770946023284,31.90879822,78.349,78.291,0.93242534]
[1770946023487,4.01595034,78.32,78.291,0.93242534]
[1770946024491,4.01595034,78.3,78.261,0.93242534]
[1770946025383,4.01595034,78.3,78.263,0.93242534]
[1770946025789,16.78747601,78.3,78.263,0.93242534]
[1770946026681,4.01595034,78.29,78.263,0.93242534]
[1770946027480,4.01595034,78.3,78.265,0.93242534]
[1770946027675,4.01595034,78.31,78.271,0.93242534]
[1770946027880,4.01595034,78.31,78.273,0.93242534]
[1770946028184,4.01595034,78.32,78.281,0.93242534]
[1770946029986,4.01595034,78.32,78.283,0.93242534]
[1770946030593,4.01595034,78.32,78.282,44.71015047]
[1770946030594,4.01595034,78.32,78.291,0.93242534]
[1770946030975,12.76829377,78.319,78.291,0.93242534]
[1770946032194,12.76829377,78.319,78.291,13.70521914]
[1770946032498,12.76829377,78.319,78.292,0.93242534]
[1770946032499,4.01595034,78.31,78.292,0.93242534]
[1770946033777,4.01595034,78.32,78.292,0.93242534]
[1770946034396,4.01595034,78.32,78.294,0.93242534]
[1770946035679,73.05471112,78.334,78.294,0.93242534]
[1770946035680,4.01595034,78.33,78.294,0.93242534]
[1770946035893,4.01595034,78.34,78.301,0.93242534]
[1770946036391,12.76503401,78.339,78.303,0.93242534]
[1770946038513,4.01595034,78.34,78.305,0.93242534]
[1770946040911,4.01543675,78.34,78.307,0.93242534]
[1770946043086,4.01543675,78.34,78.308,12.77008734]
[1770946043286,4.01543675,78.34,78.309,0.93242534]
[1770946044811,4.01543675,78.33,78.309,0.93242534]
[1770946045490,4.01543675,78.33,78.304,0.93242534]
[1770946046709,12.76666368,78.329,78.304,0.93242534]
[1770946047211,4.01543675,78.32,78.303,12.77081974]
[1770946048906,4.01543675,78.33,78.3,0.93242534]
[1770946049309,4.01543675,78.32,78.3,0.93242534]
[1770946049801,4.01543675,78.33,78.3,0.93242534]
[1770946050409,4.01543675,78.32,78.301,12.77122897]
[1770946050708,4.01543675,78.32,78.287,0.93242534]
[1770946051413,4.01543675,78.31,78.287,0.93242534]
[1770946051611,31.91079778,78.344,78.264,0.93242534]
[1770946051612,4.01543675,78.3,78.264,0.93242534]
[1770946052407,4.01543675,78.29,78.265,12.77710343]
[1770946052612,4.01543675,78.29,78.265,13.70952877]
[1770946052818,4.01543675,78.28,78.265,0.93242534]
[1770946052993,12.77318652,78.289,78.261,12.77772017]
[1770946053190,12.77318652,78.289,78.261,13.71014551]
[1770946053414,4.01543675,78.28,78.261,13.71014551]
[1770946053633,4.01543675,78.28,78.261,0.93242534]
[1770946054795,4.01543675,78.28,78.262,12.77759321]
[1770946055108,4.01543675,78.28,78.263,0.93242534]
[1770946055311,4.01543675,78.29,78.263,0.93242534]
[1770946055617,4.01543675,78.28,78.263,0.93242534]
[1770946057408,4.01543675,78.29,78.264,13.70969202]
[1770946057715,4.01543675,78.29,78.265,0.93242534]
[1770946062425,4.01543675,78.29,78.267,0.93242534]
[1770946063016,12.77174038,78.298,78.269,0.93242534]
[1770946063410,4.01543675,78.29,78.269,0.93242534]
[1770946065832,41.24,78.302,78.25,1.03242534]
[1770946065833,4.01543675,78.28,78.25,1.03242534]
[1770946066028,4.01543675,78.27,78.25,1.03242534]
[1770946067337,41.24,78.284,78.25,1.03242534]
[1770946067338,4.01543675,78.28,78.25,1.03242534]
[1770946068212,12.77334968,78.288,78.252,0.93242534]
[1770946069416,4.01543675,78.29,78.254,0.93242534]
[1770946069620,12.77318652,78.289,78.254,0.93242534]
[1770946069819,4.01543675,78.3,78.261,0.93242534]
[1770946071529,4.01543675,78.3,78.262,12.77759321]
[1770946071722,4.01543675,78.3,78.263,0.93242534]
[1770946073332,4.01543675,78.3,78.265,0.93242534]
[1770946073634,12.77121881,78.302,78.265,0.93242534]
[1770946074220,4.01543675,78.32,78.271,0.93242534]
[1770946074430,4.61729252,78.319,78.271,0.93242534]
[1770946074631,4.01543675,78.31,78.271,0.93242534]
[1770946075340,4.01543675,78.31,78.273,0.93242534]
[1770946078663,4.01543675,78.31,78.274,12.77563431]
[1770946078835,4.01543675,78.33,78.281,0.93242534]
[1770946079223,12.76601177,78.333,78.281,0.93242534]
[1770946079224,4.01543675,78.32,78.281,0.93242534]
[1770946080324,4.01543675,78.32,78.283,0.93242534]
[1770946081729,4.01543675,78.33,78.29,4.01543675]
[1770946081934,4.01543675,78.33,78.291,0.93242534]
[1770946082438,4.01543675,78.33,78.293,0.93242534]
[1770946083137,4.01543675,78.35,78.311,0.93242534]
[1770946084542,4.01543675,78.35,78.313,0.93242534]
[1770946086044,12.76340476,78.349,78.313,0.93242534]
[1770946086728,12.76340476,78.349,78.315,0.93242534]
[1770946087835,4.01543675,78.35,78.315,0.93242534]
[1770946088630,16.77872293,78.35,78.315,0.93242534]
[1770946089241,16.77872293,78.35,78.317,0.93242534]
[1770946089746,4.01543675,78.35,78.317,0.93242534]
[1770946089920,4.01543675,78.36,78.321,0.93242534]
[1770946090257,4.01543675,78.36,78.32,4.01543675]
[1770946090258,4.01543675,78.36,78.323,0.93242534]
[1770946090426,12.7610453,78.364,78.323,0.93242534]
[1770946091149,12.75888126,78.377,78.341,0.93242534]
[1770946091335,12.75888126,78.377,78.343,0.93242534]
[1770946091925,12.75789243,78.383,78.343,0.93242534]
[1770946092131,4.61729252,78.393,78.361,0.93242534]
[1770946092323,41.18,78.401,78.361,0.93242534]
[1770946092544,12.7539267,78.408,78.371,0.93242534]
[1770946093051,4.21543675,78.41,78.371,0.93242534]
[1770946093344,0.2,78.44,78.403,0.83242534]
[1770946093531,0.2,78.44,78.411,0.83242534]
[1770946094048,0.2,78.44,78.421,0.83242534]
[1770946094237,4.01543675,78.46,78.42,4.01543675]
[1770946094238,4.01543675,78.46,78.422,0.82046347]
[1770946094551,0.27490142,78.471,78.441,0.82046347]
[1770946094746,12.74265777,78.477,78.441,0.82046347]
[1770946095254,12.74265777,78.477,78.443,0.82046347]
[1770946097339,12.74265777,78.477,78.445,0.82046347]
[1770946097540,0.27387412,78.469,78.439,12.74861238]
[1770946097743,0.27387412,78.469,78.427,12.7506976]
[1770946097744,0.27387412,78.459,78.427,12.7506976]
[1770946098148,0.27387412,78.459,78.427,13.57116107]
[1770946098351,0.27387412,78.449,78.415,12.75252071]
[1770946098532,8.93161958,78.44,78.415,12.75252071]
[1770946098935,0.27354297,78.449,78.416,0.82046347]
[1770946099640,39.54,78.456,78.409,0.82046347]
[1770946099641,0.27321835,78.439,78.409,0.82046347]
[1770946099857,9.20483793,78.45,78.411,0.82046347]
[1770946100054,12.74628824,78.455,78.421,0.82046347]
[1770946100237,8.93161958,78.45,78.421,0.82046347]
[1770946100551,0.27289481,78.449,78.421,0.82046347]
[1770946101054,0.27289481,78.455,78.421,0.82046347]
[1770946101643,0.27289481,78.455,78.422,12.7515238]
[1770946101847,12.74632268,78.454,78.423,0.82046347]
[1770946102048,0.27256864,78.453,78.423,0.82046347]
[1770946102438,0.27225259,78.449,78.412,0.82046347]
[1770946102649,8.93695884,78.46,78.421,0.82046347]
[1770946103138,0.27225259,78.459,78.421,0.82046347]
[1770946103759,12.74556003,78.459,78.422,12.7515238]
[1770946103960,8.93695884,78.44,78.417,12.75233186]
[1770946104268,8.93695884,78.44,78.415,0.82046347]
[1770946104636,0.27163191,78.439,78.411,12.75315461]
[1770946105540,0.27163191,78.439,78.411,0.82046347]
[1770946107461,8.93695884,78.44,78.411,0.82046347]
[1770946107648,8.93695884,78.44,78.413,0.82046347]
[1770946108250,0.27072487,78.446,78.413,0.82046347]
[1770946108761,50.11695884,78.45,78.413,0.82046347]
[1770946108762,8.93695884,78.45,78.413,0.82046347]
[1770946109665,9.20709378,78.45,78.415,0.82046347]
[1770946109863,0.27013494,78.449,78.415,0.82046347]
[1770946112844,0.27013494,78.449,78.414,12.75282475]
[1770946112845,8.93695884,78.45,78.417,0.86459029]
[1770946113049,0.26204938,78.449,78.417,0.86459029]
[1770946113681,8.93695884,78.45,78.417,0.86459029]
[1770946114957,4.00378351,78.45,78.419,0.86067472]
[1770946115655,4.00378351,78.46,78.421,0.86067472]
[1770946116352,0.25247542,78.467,78.431,0.86067472]
[1770946116655,4.00378351,78.46,78.431,0.86067472]
[1770946116850,4.00378351,78.46,78.432,12.749898]
[1770946117056,0.25247542,78.467,78.433,0.86067472]
[1770946117262,12.74437335,78.466,78.433,0.86067472]
[1770946117466,4.00378351,78.46,78.433,0.86067472]
[1770946118265,4.20378351,78.47,78.433,0.86067472]
[1770946118649,4.00378351,78.45,78.427,0.86067472]
[1770946118858,0.2487917,78.449,78.425,0.86067472]
[1770946119552,0.2469853,78.439,78.416,54.48]
[1770946119752,0.2469853,78.439,78.408,0.86067472]
[1770946120671,0.2469853,78.439,78.409,12.7536293]
[1770946120850,8.9412218,78.43,78.409,12.7536293]
[1770946121051,8.9412218,78.43,78.41,0.86067472]
[1770946121251,0.24519969,78.434,78.41,0.86067472]
[1770946122274,0.24519969,78.434,78.411,12.75331267]
[1770946123267,12.98981747,78.443,78.412,0.86067472]
[1770946123467,0.23997088,78.439,78.412,0.86067472]
[1770946125568,0.23997088,78.439,78.414,0.86067472]
[1770946127664,8.9412218,78.45,78.416,0.86067472]
[1770946127966,0.2332561,78.449,78.416,0.86067472]
[1770946128655,8.9412218,78.45,78.416,0.86067472]
[1770946129172,0.23161963,78.459,78.421,0.86067472]
[1770946130372,8.9412218,78.46,78.423,0.86067472]
[1770946133274,8.9412218,78.46,78.425,0.86067472]
[1770946133476,0.22375673,78.475,78.425,0.86067472]
[1770946133777,0.22375673,78.475,78.424,44.62919514]
[1770946133778,9.1412218,78.47,78.431,0.86067472]
[1770946135368,9.1412218,78.47,78.433,0.86067472]
[1770946135770,0.2,78.47,78.441,0.86067472]
[1770946137180,0.2,78.47,78.443,0.86067472]
[1770946138704,12.96022533,78.469,78.443,0.86067472]
[1770946138864,9.1412218,78.47,78.443,0.86067472]
[1770946139059,0.2,78.47,78.443,0.86067472]
[1770946139386,0.2,78.47,78.444,12.74794758]
[1770946139583,0.2,78.47,78.445,0.86067472]
[1770946139894,0.2,78.47,78.444,12.74794758]
[1770946139895,0.2,78.48,78.451,0.86067472]
[1770946140865,0.21206578,78.479,78.451,0.86067472]
[1770946141061,0.2,78.48,78.451,0.86067472]
[1770946141386,0.2,78.48,78.453,0.80213218]
[1770946141570,9.1412218,78.5,78.479,0.80213218]
[1770946141571,0.2,78.5,78.479,0.80213218]
[1770946141777,8.9412218,78.52,78.48,0.80213218]
[1770946142071,50.90207692,78.583,78.491,0.80213218]
[1770946142072,0.21067648,78.528,78.491,0.80213218]
[1770946142664,0.2,78.53,78.491,0.80213218]
[1770946142888,0.2,78.53,78.502,0.80213218]
[1770946142889,1e-08,78.53,78.502,0.80213218]
[1770946143185,1e-08,78.53,78.511,0.80213218]
[1770946143487,1e-08,78.53,78.513,0.80213218]
[1770946144785,1e-08,78.53,78.515,0.80213218]
[1770946145575,4.19440473,78.55,78.514,12.73658201]
[1770946145576,0.2,78.55,78.521,0.80213218]
[1770946145874,3.99440473,78.57,78.531,0.80213218]
[1770946146067,12.93292112,78.569,78.531,0.80213218]
[1770946146265,0.205255,78.568,78.531,0.80213218]
[1770946147384,0.205255,78.568,78.533,0.80213218]
[1770946148770,3.99440473,78.57,78.533,0.80213218]
[1770946148973,3.99440473,78.57,78.532,44.56781948]
[1770946148974,0.2,78.58,78.551,0.80213218]
[1770946149480,0.2,78.58,78.553,0.80213218]
[1770946151266,0.2,78.58,78.555,0.80213218]
[1770946152372,0.19636664,78.608,78.571,0.80213218]
[1770946152781,0.19636664,78.617,78.571,0.80213218]
[1770946153487,0.19636664,78.617,78.573,0.80213218]
[1770946154077,3.99440473,78.58,78.554,0.80213218]
[1770946154772,0.19394887,78.596,78.554,0.80213218]
[1770946154971,0.19394887,78.596,78.561,0.80213218]
[1770946155576,0.19394887,78.596,78.563,0.80213218]
[1770946155777,12.72345569,78.595,78.563,0.80213218]
[1770946156795,3.99440473,78.6,78.563,0.80213218]
[1770946156984,10.68335956,78.6,78.563,0.80213218]
[1770946157378,0.19160066,78.604,78.563,0.80213218]
[1770946157598,10.68335956,78.61,78.572,0.80213218]
[1770946157599,10.87379815,78.61,78.572,0.80213218]
[1770946158678,0.18929449,78.608,78.574,0.80213218]
[1770946159671,12.72118968,78.609,78.568,12.72768188]
[1770946159672,0.18817266,78.599,78.568,12.72768188]
[1770946159878,10.68335956,78.58,78.552,0.80213218]
[1770946160279,0.18705625,78.589,78.552,0.80213218]
[1770946160595,0.18705625,78.589,78.554,0.80213218]
[1770946161281,40.74,78.588,78.554,0.80213218]
[1770946161479,40.92594911,78.588,78.554,0.80213218]
[1770946162795,0.18485919,78.587,78.555,12.72993444]
[1770946162994,0.18485919,78.569,78.537,0.80213218]
[1770946163388,0.18379329,78.567,78.537,0.80213218]
[1770946163699,0.18379329,78.559,78.529,0.80213218]
[1770946163902,8.90832548,78.55,78.529,0.80213218]
[1770946164098,8.90832548,78.55,78.523,0.80213218]
[1770946165497,40.74,78.558,78.525,0.80213218]
[1770946165689,40.74,78.557,78.525,0.80213218]
[1770946166483,8.90832548,78.55,78.525,0.80213218]
[1770946166996,0.18064891,78.556,78.525,0.80213218]
[1770946167302,0.18064891,78.556,78.524,12.73496001]
[1770946167303,0.18064891,78.556,78.527,0.80213218]
[1770946167692,40.74,78.557,78.527,0.80213218]
[1770946168501,8.90832548,78.56,78.527,0.80213218]
[1770946168502,40.76,78.556,78.527,0.80213218]
[1770946169086,31.81631555,78.577,78.531,0.80213218]
[1770946169087,40.76,78.562,78.531,0.80213218]
[1770946169275,8.90832548,78.57,78.531,0.80213218]
[1770946169487,40.78,78.569,78.531,0.80213218]
[1770946169891,21.63424709,78.58,78.541,0.80213218]
[1770946170212,40.78,78.579,78.541,0.80213218]
[1770946171111,0.17564855,78.569,78.527,0.76015309]
[1770946171318,0.17467801,78.559,78.527,0.76015309]
[1770946171605,0.17467801,78.549,78.52,0.76015309]
[1770946171782,0.17467801,78.549,78.51,8.90832548]
[1770946171983,0.17467801,78.539,78.512,0.76015309]
[1770946172396,40.78,78.538,78.512,0.76015309]
[1770946173682,40.78,78.538,78.513,12.73674423]
[1770946174281,40.78,78.538,78.491,0.80992649]
[1770946174282,0.17185287,78.529,78.491,0.80992649]
[1770946174487,0.17185287,78.529,78.492,0.80992649]
[1770946174696,8.90832548,78.53,78.492,0.80992649]
[1770946177082,8.90832548,78.53,78.493,44.58996343]
[1770946177286,0.16824354,78.528,78.494,0.80992649]
[1770946177486,40.8,78.528,78.494,0.80992649]
[1770946178288,40.96824354,78.528,78.494,0.80992649]
[1770946179104,0.16736307,78.527,78.496,0.80992649]
[1770946179311,8.90832548,78.52,78.496,0.80992649]
[1770946179488,40.8,78.524,78.496,0.80992649]
[1770946181193,40.8,78.524,78.498,0.80992649]
[1770946181705,9.0731203,78.53,78.498,0.80992649]
[1770946182104,8.90832548,78.52,78.498,0.80992649]
[1770946182907,0.16479482,78.529,78.498,0.80992649]
[1770946183513,0.16479482,78.529,78.5,0.80992649]
[1770946183811,0.16311352,78.528,78.5,0.80992649]
[1770946184609,40.84,78.527,78.5,0.80992649]
[1770946184810,41.00229224,78.527,78.5,0.80992649]
[1770946185591,0.16147502,78.526,78.501,12.73869122]
[1770946185810,0.16147502,78.526,78.501,13.54861771]
[1770946186510,0.16147502,78.526,78.48,8.92023317]
[1770946186511,0.16066571,78.519,78.493,0.80992649]
[1770946186688,0.16066571,78.519,78.495,0.80992649]
[1770946186890,8.92023317,78.52,78.495,0.80992649]
[1770946188497,40.84,78.527,78.497,0.80992649]
[1770946189704,40.9,78.526,78.497,0.80992649]
[1770946190294,8.92023317,78.53,78.497,0.80992649]
[1770946190495,40.92,78.525,78.497,0.80992649]
[1770946191238,4.61729252,78.55,78.47,50.97427257]
[1770946191239,40.92,78.545,78.511,0.80992649]
[1770946192316,40.92,78.545,78.504,0.80992649]
[1770946192317,0.15605331,78.529,78.504,0.80992649]
[1770946193103,8.92023317,78.53,78.504,0.80992649]
[1770946193721,8.92023317,78.53,78.507,0.80992649]
[1770946193919,0.15530977,78.529,78.5,0.80992649]
[1770946195622,0.15530977,78.529,78.502,0.80992649]
[1770946197222,0.15530977,78.529,78.47,50.97474822]
[1770946197223,9.07337186,78.51,78.471,0.80992649]
[1770946197519,44.56952207,78.529,78.481,0.80992649]
[1770946197520,8.92023317,78.52,78.481,0.80992649]
[1770946197726,40.94,78.527,78.491,0.80992649]
[1770946197931,40.94,78.528,78.491,0.80992649]
[1770946198305,8.92023317,78.52,78.491,0.80992649]
[1770946198616,41.09243138,78.528,78.491,0.80992649]
[1770946198822,0.15172953,78.527,78.491,0.80992649]
[1770946199224,0.15172953,78.527,78.492,12.74015186]
[1770946199422,40.94,78.526,78.493,0.80992649]
[1770946199927,0.15102869,78.533,78.493,0.80992649]
[1770946200123,8.92023317,78.53,78.493,0.80992649]
[1770946200325,8.92023317,78.56,78.521,0.74975942]
[1770946200512,0.77278967,78.539,78.5,8.92023317]
[1770946200707,0.77278967,78.545,78.5,8.92023317]
[1770946200908,40.94,78.553,78.52,8.92023317]
[1770946201210,0.77278967,78.549,78.511,44.57974041]
[1770946201726,0.77278967,78.539,78.511,44.57974041]
[1770946202524,0.77278967,78.539,78.512,0.74975942]
[1770946202841,0.77278967,78.545,78.512,0.74975942]
[1770946203512,0.77278967,78.539,78.514,0.74975942]
[1770946204212,0.77278967,78.549,78.514,0.74975942]
[1770946204909,8.92023317,78.55,78.513,12.73674423]
[1770946204910,3.99376301,78.57,78.531,0.74975942]
[1770946205131,0.77278967,78.576,78.531,0.74975942]
[1770946205308,3.99376301,78.58,78.543,0.74975942]
[1770946205931,0.77278967,78.579,78.543,0.74975942]
[1770946206732,3.99376301,78.57,78.543,0.74975942]
[1770946206927,8.90921128,78.57,78.543,0.74975942]
[1770946207309,8.90921128,78.57,78.515,56.30649232]
[1770946207310,0.77278967,78.549,78.523,0.74975942]
[1770946207515,9.68200095,78.54,78.516,0.74975942]
[1770946207737,9.68200095,78.54,78.518,12.73585456]
[1770946208036,0.77278967,78.539,78.502,0.74975942]
[1770946209634,0.77278967,78.538,78.504,0.74975942]
[1770946210032,8.90921128,78.54,78.504,0.74975942]
[1770946210234,0.77278967,78.539,78.504,0.74975942]
[1770946211716,8.90921128,78.54,78.506,0.74975942]
[1770946213755,0.77278967,78.539,78.508,0.74975942]
[1770946215132,8.90921128,78.52,78.492,0.74975942]
[1770946215439,0.77278967,78.519,78.493,0.74975942]
[1770946215639,0.77278967,78.519,78.492,12.74015186]
[1770946216331,41.04,78.536,78.501,0.74975942]